fUST/lending_fUST_20240114
["ID","MTS","AMOUNT","RATE_DAILY","PERIOD"]
[311525452,1705185040397,-913.55,0.0003041,2]
[311525453,1705185040406,-282.92595231,0.00030524,4]
[311525454,1705185040417,-3592.46003286,0.00030557,2]
[311525455,1705185040426,-153.59913519,0.0003058,2]
[311525457,1705185040434,-361.53035797,0.00030655,4]
[311525458,1705185040443,-309.21329564,0.00030655,4]
[311525460,1705185040452,-508.9606608,0.00030655,4]
[311525461,1705185040461,-323.27217089,0.00030655,4]
[311525462,1705185040470,-207.10342479,0.00030655,4]
[311525463,1705185040479,-155.09147879,0.00030655,4]
[311525464,1705185040488,-198.11275492,0.00030655,2]
[311525467,1705185040501,-223.13923506,0.00030656,4]
[311525468,1705185040510,-152.0,0.0003066,30]
[311525470,1705185040519,-152.0,0.0003067,30]
[311525472,1705185040529,-152.64236015,0.00030673,7]
[311525474,1705185040538,-167.83694434,0.00030677,4]
[311525477,1705185040547,-4006.72920618,0.00030677,2]
[311525480,1705185040556,-264.87381963,0.00030677,4]
[311525481,1705185040566,-155.04651395,0.00030677,2]
[311525483,1705185040574,-155.09322941,0.00030677,2]
[311525485,1705185040583,-215.68928053,0.00030677,4]
[311525487,1705185040592,-469.71701685,0.00030677,2]
[311525489,1705185040602,-249.4328017,0.00030677,4]
[311525491,1705185040610,-304.4646857,0.00030677,4]
[311525493,1705185040619,-162.61777634,0.00030677,4]
[311525495,1705185040628,-309.86060067,0.00030677,4]
[311525497,1705185040638,-1250.39757004,0.00030677,4]
[311525499,1705185040647,-553.96762656,0.00030677,4]
[311525501,1705185040656,-155.14313428,0.00030677,4]
[311525504,1705185040665,-861.55365238,0.00030677,4]
[311525507,1705185040674,-199.52290028,0.00030677,4]
[311525510,1705185040683,-360.80127126,0.00030677,2]
[311525513,1705185040692,-2030.38673937,0.00030677,4]
[311525516,1705185040701,-309.86062544,0.00030678,4]
[311525519,1705185040710,-309.89153874,0.00030678,4]
[311525522,1705185040719,-15883.65187876,0.00030678,4]
[311525525,1705185040728,-81065.86768714,0.00030679,4]
[311525528,1705185040737,-2035.15445086,0.0003068,4]
[311525531,1705185040746,-152.0,0.0003068,30]
[311525534,1705185040755,-155.04651395,0.00030681,4]
[311525537,1705185040764,-155.34427017,0.00030681,4]
[311525540,1705185040773,-155.09446132,0.00030681,4]
[311525543,1705185040782,-309.81411154,0.00030681,2]
[311525546,1705185040791,-176.56019187,0.00030681,4]
[311525549,1705185040800,-309.16953134,0.00030681,4]
[311525552,1705185040809,-400.02724112,0.00030681,4]
[311525555,1705185040818,-221.97582673,0.00030681,4]
[311525558,1705185040827,-309.75221062,0.00030681,4]
[311525561,1705185040836,-310.00798648,0.00030681,4]
[311525564,1705185040846,-309.87604958,0.00030681,4]
[311525568,1705185040855,-2517.27565721,0.00030681,4]
[311525571,1705185040865,-155.34159394,0.00030681,4]
[311525574,1705185040874,-155.14300858,0.00030681,4]
[311525577,1705185040883,-301.85753165,0.00030681,4]
[311525580,1705185040892,-250.79101086,0.00030681,4]
[311525583,1705185040902,-2808.94906759,0.00030681,4]
[311525585,1705185040911,-309.78316417,0.00030681,4]
[311525588,1705185040920,-250.47516659,0.00030681,4]
[311525591,1705185040931,-642.93704766,0.00030681,4]
[311525595,1705185040941,-686.6489252,0.00030681,4]
[311525598,1705185040950,-215.9027007,0.00030681,4]
[311525601,1705185040959,-2698.75957629,0.00030681,120]
[311525603,1705185040968,-1647.46294033,0.00030681,4]
[311525605,1705185040977,-191.01244923,0.00030681,4]
[311525607,1705185040987,-155.04777018,0.00030681,4]
[311525609,1705185040996,-637.26620041,0.00030682,4]
[311525611,1705185041005,-15000.00918568,0.00030683,4]
[311525613,1705185041014,-1955.55471504,0.00030684,4]
[311525615,1705185041023,-194.94913572,0.00030684,4]
[311525617,1705185041032,-155.00310006,0.00030684,2]
[311525619,1705185041041,-155.53002517,0.00030684,2]
[311525621,1705185041050,-282.75607304,0.00030684,3]
[311525623,1705185041059,-155.00310006,0.00030684,14]
[311525625,1705185041068,-649.46848965,0.00030684,4]
[311525627,1705185041077,-500.0,0.00030684,2]
[311525629,1705185041086,-521.22,0.00030684,2]
[311525631,1705185041095,-1466.55,0.00030684,2]
[311525633,1705185041104,-500.0,0.00030684,2]
[311525635,1705185041113,-620.37,0.00030684,2]
[311525637,1705185041122,-3087.27,0.00030684,2]
[311525639,1705185041131,-500.0,0.00030684,2]
[311525641,1705185041140,-918.04,0.00030684,2]
[311525644,1705185041149,-786.62,0.00030684,2]
[311525645,1705185041158,-4273.51,0.00030684,2]
[311525648,1705185041168,-500.0,0.00030684,2]
[311525650,1705185041177,-520.05,0.00030684,2]
[311525651,1705185041186,-913.55,0.00030684,2]
[311525654,1705185041196,-500.0,0.00030958,2]
[311525656,1705185041205,-521.22,0.00030958,2]
[311525657,1705185041214,-1466.55,0.00030958,2]
[311525659,1705185041223,-500.0,0.00030958,2]
[311525661,1705185041232,-620.37,0.00030958,2]
[311525664,1705185041241,-3087.27,0.00030958,2]
[311525666,1705185041251,-178.37,0.00030958,2]
[311525668,1705185041260,-918.04,0.00030958,2]
[311525670,1705185041269,-786.62,0.00030958,2]
[311525672,1705185041279,-4273.51,0.00030958,2]
[311525673,1705185041289,-500.0,0.00030958,2]
[311525676,1705185041301,-520.05,0.00030958,2]
[311525678,1705185041313,-913.55,0.00030958,2]
[311525680,1705185041327,-166.78944766,0.00030998,5]
[311525682,1705185041341,-155.0480649,0.00030998,4]
[311525685,1705185041353,-1737.54470302,0.00030998,4]
[311525687,1705185041365,-260.34948307,0.00030998,4]
[311525689,1705185041378,-40829.63679169,0.00031,4]
[311525692,1705185041390,-385.66826994,0.00031231,4]
[311525694,1705185041400,-500.0,0.00031231,4]
[311525696,1705185041410,-156.14719902,0.00031231,4]
[311525698,1705185041420,-485.9,0.00031232,2]
[311525700,1705185041432,-521.22,0.00031232,2]
[311525702,1705185041443,-1466.55,0.00031232,2]
[311525704,1705185041453,-500.0,0.00031232,2]
[311525706,1705185041464,-620.37,0.00031232,2]
[311525709,1705185041474,-3087.27,0.00031232,2]
[311525711,1705185041486,-918.04,0.00031232,2]
[311525713,1705185041497,-786.62,0.00031232,2]
[311525716,1705185041509,-4273.51,0.00031232,2]
[311525718,1705185041520,-500.0,0.00031232,2]
[311525720,1705185041530,-520.05,0.00031232,2]
[311525722,1705185041540,-913.55,0.00031232,2]
[311525724,1705185041550,-155.0,0.000315,2]
[311525726,1705185041561,-521.22,0.00031506,2]
[311525729,1705185041573,-1466.55,0.00031506,2]
[311525731,1705185041583,-500.0,0.00031506,2]
[311525733,1705185041592,-620.37,0.00031506,2]
[311525735,1705185041602,-3087.27,0.00031506,2]
[311525737,1705185041612,-918.04,0.00031506,2]
[311525739,1705185041623,-786.62,0.00031506,2]
[311525740,1705185041633,-4273.51,0.00031506,2]
[311525741,1705185041644,-500.0,0.00031506,2]
[311525743,1705185041654,-520.05,0.00031506,2]
[311525745,1705185041664,-913.55,0.00031506,2]
[311525747,1705185041675,-521.22,0.0003178,2]
[311525748,1705185041686,-1466.55,0.0003178,2]
[311525750,1705185041695,-500.0,0.0003178,2]
[311525751,1705185041706,-620.37,0.0003178,2]
[311525752,1705185041716,-3087.27,0.0003178,2]
[311525755,1705185041727,-918.04,0.0003178,2]
[311525757,1705185041737,-786.62,0.0003178,2]
[311525759,1705185041748,-4273.51,0.0003178,2]
[311525761,1705185041758,-500.0,0.0003178,2]
[311525763,1705185041767,-520.05,0.0003178,2]
[311525764,1705185041777,-913.55,0.0003178,2]
[311525765,1705185041786,-151.0,0.0003189,2]
[311525766,1705185041798,-181422.93594209,0.00032,15]
[311525767,1705185041809,-2001.0,0.00032,9]
[311525768,1705185041820,-126473.50999809,0.00032,15]
[311525769,1705185041837,-6967.25109781,0.00032,15]
[311525770,1705185041850,-994.59247484,0.00032,15]
[311525771,1705185041937,-1576.73391587,0.00020434,2]
[311525772,1705185041949,-155.01395126,0.00020435,2]
[311525773,1705185041960,-1021.95730599,0.00032,15]
[311525796,1705185043352,-525.86975939,0.00020434,2]
[311525797,1705185043364,-2636.53642917,0.00032,15]
[311525798,1705185043379,-2309.72508621,0.00032,15]
[311525799,1705185043392,-2597.31102854,0.00032,15]
[311525800,1705185043411,-638.14068067,0.00032,15]
[311525801,1705185043425,-270.1492761,0.00032,15]
[311525802,1705185043439,-978.34633277,0.00032,15]
[311525803,1705185043452,-650.0,0.00032,15]
[311525831,1705185046460,-166.39764695,0.00029314,2]
[311525833,1705185046471,-7986.24740238,0.00031999,4]
[311525835,1705185046482,-354.6508384,0.00031999,4]
[311525836,1705185046492,-328.46864473,0.00031999,4]
[311525837,1705185046501,-214.61666136,0.00031999,4]
[311525838,1705185046511,-627.29190689,0.00031999,4]
[311525839,1705185046521,-405.00118709,0.00031999,4]
[311525840,1705185046531,-10677.55240518,0.00031999,2]
[311525841,1705185046543,-853.35414335,0.00031999,4]
[311525842,1705185046554,-453.58578818,0.00031999,4]
[311525843,1705185046571,-837.22144011,0.00031999,4]
[311525844,1705185046581,-788.40669793,0.00031999,4]
[311525845,1705185046591,-7828.21568784,0.00031999,4]
[311525846,1705185046602,-55158.19935551,0.00032,15]
[311525847,1705185046613,-492.02362545,0.00032,5]
[311525848,1705185046624,-1000.0,0.00032,32]
[311525849,1705185046634,-300.0,0.00032,2]
[311525850,1705185046645,-55685.30934869,0.00032,15]
[311525851,1705185046654,-500.0,0.00032,2]
[311525852,1705185046666,-2959.06234031,0.00032,2]
[311525853,1705185046676,-171.211417,0.00032,2]
[311525854,1705185046686,-171.211417,0.00032,2]
[311525855,1705185046696,-171.211417,0.00032,2]
[311525856,1705185046706,-171.211417,0.00032,2]
[311525857,1705185046715,-151.0,0.00032,2]
[311525858,1705185046725,-151.0,0.00032,2]
[311525859,1705185046736,-992.36827334,0.00032,7]
[311525860,1705185046745,-10203.78120991,0.00032,7]
[311525861,1705185046755,-529.55360942,0.00032,7]
[311525862,1705185046765,-964.03902002,0.00032,7]
[311525863,1705185046878,-500.0,0.00032,3]
[311525864,1705185046888,-1000.0,0.00032,7]
[311525865,1705185046898,-176.489287,0.00032,2]
[311525866,1705185046908,-176.489287,0.00032,2]
[311525867,1705185046919,-176.489287,0.00032,2]
[311525868,1705185046927,-176.489287,0.00032,2]
[311525869,1705185046937,-200.0,0.00032,4]
[311525870,1705185046947,-1725.07705998,0.00032,2]
[311525871,1705185046956,-521.22,0.00032054,2]
[311525872,1705185046966,-1466.55,0.00032054,2]
[311525873,1705185046976,-500.0,0.00032054,2]
[311525874,1705185046985,-620.37,0.00032054,2]
[311525875,1705185046994,-3087.27,0.00032054,2]
[311525876,1705185047004,-918.04,0.00032054,2]
[311525877,1705185047013,-786.62,0.00032054,2]
[311525878,1705185047022,-4273.51,0.00032054,2]
[311525879,1705185047031,-343.66,0.00032054,2]
[311525880,1705185047041,-520.05,0.00032054,2]
[311525881,1705185047051,-913.55,0.00032054,2]
[311525882,1705185047059,-176.489287,0.00032328,2]
[311525883,1705185047068,-176.489287,0.00032328,2]
[311525884,1705185047077,-521.22,0.00032328,2]
[311525885,1705185047087,-1466.55,0.00032328,2]
[311525886,1705185047097,-500.0,0.00032328,2]
[311525887,1705185047106,-620.37,0.00032328,2]
[311525888,1705185047116,-3087.27,0.00032328,2]
[311525889,1705185047126,-918.04,0.00032328,2]
[311525890,1705185047136,-786.62,0.00032328,2]
[311525891,1705185047146,-4273.51,0.00032328,2]
[311525892,1705185047156,-520.05,0.00032328,2]
[311525893,1705185047166,-913.55,0.00032328,2]
[311525894,1705185047175,-162.876087,0.00032499,2]
[311525895,1705185047185,-385.162076,0.00032499,2]
[311525896,1705185047195,-211.982142,0.00032499,2]
[311525897,1705185047204,-4120.63369854,0.000325,15]
[311525898,1705185047215,-1084.56602035,0.000325,5]
[311525899,1705185047245,-41422.78590674,0.000325,5]
[311525900,1705185047255,-252464.07910887,0.000325,20]
[311525905,1705185097394,24900.0,0.00019445,2]
[311525913,1705185239330,155.53002517,0.00019445,2]
[311525914,1705185246326,155.01395126,0.00019445,2]
[311525915,1705185286655,-363.0,0.00020105,2]
[311525918,1705185355662,-166.39764695,0.00020087,2]
[311525919,1705185355684,-242.70971485,0.00020088,2]
[311525920,1705185355705,-875.01165605,0.00020088,2]
[311525921,1705185355731,-615.80248759,0.00020088,2]
[311525922,1705185355753,-155.01395126,0.00020088,2]
[311525923,1705185355776,-160.756103,0.00020088,2]
[311525924,1705185355798,-1694.17346883,0.00020088,2]
[311525925,1705185355818,-594.2143433,0.00020088,2]
[311525926,1705185355839,-155.01395126,0.00020089,2]
[311525927,1705185355861,-155.01395126,0.00020089,2]
[311525928,1705185355880,-155.01395126,0.00020089,2]
[311525929,1705185355900,-174.94849142,0.00020089,2]
[311525930,1705185355921,-155.01395126,0.0002009,2]
[311525931,1705185355941,-155.01395126,0.0002009,2]
[311525932,1705185355961,-679.06966143,0.0002009,2]
[311525933,1705185355984,-155.01395126,0.0002009,2]
[311525934,1705185356006,-981.69,0.0002009,3]
[311525935,1705185356027,-155.01395126,0.00020091,2]
[311525936,1705185356050,-1178.02,0.00020091,3]
[311525937,1705185356071,-20842.42787433,0.00020091,2]
[311525938,1705185356094,-857.14,0.00020092,3]
[311525939,1705185356115,-19669.45887816,0.00020098,2]
[311525940,1705185356137,-15197.28117202,0.00020099,2]
[311525941,1705185356161,-15701.78689199,0.00020099,2]
[311525942,1705185374380,5136.25940385,0.00019502,2]
[311525943,1705185398081,5313.9463782,0.00019083,2]
[311525948,1705185429589,3000.0,0.00019078,2]
[311525950,1705185480592,178.96994879,0.00019968,2]
[311525951,1705185571158,974.256044,0.00019039,2]
[311525954,1705185630676,153.59913519,0.00019927,2]
[311525959,1705185663971,4444.79890894,0.00019015,2]
[311525960,1705185664006,20455.20109106,0.00019015,2]
[311525961,1705185681913,829.7,0.00019999,3]
[311525962,1705185691054,285.90751305,0.0002,2]
[311525963,1705185693361,691.42,0.00019998,3]
[311525964,1705185693818,20871.14682489,0.0002,2]
[311525965,1705185694018,686.84015754,0.0002,2]
[311525966,1705185694563,36905.76332305,0.0002,2]
[311525967,1705185694606,360.90387838,0.0002,2]
[311525968,1705185695374,1990.42773149,0.0002,2]
[311525969,1705185704266,941.25,0.00019998,3]
[311525970,1705185707712,521.31313166,0.0002,2]
[311525971,1705185709013,1738.04312491,0.0002,2]
[311525972,1705185709777,1466.67664473,0.0002,2]
[311525973,1705185712503,174.94849142,0.0002,2]
[311525974,1705185713019,679.06966143,0.0002,2]
[311525975,1705185715782,784.38,0.00019997,3]
[311525976,1705185716500,166.70935578,0.0002,2]
[311525977,1705185718325,2035.80105868,0.0002,2]
[311525978,1705185718433,261.8986851,0.0002,2]
[311525979,1705185719014,466.88440498,0.0002,2]
[311525980,1705185719272,322.58071309,0.0002,2]
[311525981,1705185719544,166.39764695,0.0002,2]
[311525982,1705185719603,1240.5015561,0.0002,2]
[311525983,1705185719816,198.91903016,0.0002,2]
[311525984,1705185720071,156.70193537,0.0002,2]
[311525985,1705185720260,1576.73391587,0.0002,2]
[311525986,1705185722462,214.01410615,0.0002,2]
[311525987,1705185722786,13698.4853674,0.0002,2]
[311525988,1705185722859,15197.28117202,0.0002,2]
[311525989,1705185723094,7947.14971871,0.0002,2]
[311525990,1705185723880,329.01472352,0.0002,2]
[311525991,1705185724176,155.01395126,0.00019999,3]
[311525992,1705185725638,253.67809972,0.00019999,2]
[311525993,1705185725776,1466.67664473,0.00015004,2]
[311525994,1705185725822,242.70971485,0.0002,2]
[311525995,1705185726968,653.65,0.00019997,3]
[311525996,1705185728235,52050.89462515,0.0002,2]
[311525997,1705185728262,29035.85784491,0.0002,2]
[311525998,1705185730069,2709.7496128,0.0002,2]
[311525999,1705185730096,875.01165605,0.0002,2]
[311526000,1705185730217,19669.45887816,0.0002,2]
[311526001,1705185730387,525.86975939,0.0002,2]
[311526002,1705185730601,155.01395126,0.0002,2]
[311526003,1705185731249,155.01395126,0.0002,2]
[311526004,1705185733644,155.01395126,0.0002,2]
[311526005,1705185733985,3739.83692248,0.0002,2]
[311526006,1705185734019,213.06897268,0.0002,2]
[311526007,1705185734999,615.80248759,0.0002,2]
[311526008,1705185735921,554.4461358,0.0002,2]
[311526009,1705185736037,155.01395126,0.0002,2]
[311526010,1705185737171,1221.14074006,0.0002,2]
[311526011,1705185737987,544.71,0.00019997,3]
[311526012,1705185738776,155.01395126,0.0002,2]
[311526013,1705185738899,191.10838986,0.0002,2]
[311526014,1705185740166,155.01395126,0.00018005,3]
[311526015,1705185740362,560.74395883,0.0002,2]
[311526016,1705185740845,20842.42787433,0.0002,2]
[311526017,1705185741369,2700.20522708,0.0002,2]
[311526018,1705185742444,155.01395126,0.0002,2]
[311526019,1705185743089,155.01395126,0.0002,2]
[311526020,1705185745543,260.43027978,0.0002,2]
[311526021,1705185745752,1466.67664473,0.00015004,2]
[311526022,1705185748678,643.28378818,0.0002,2]
[311526023,1705185749220,453.92,0.00019995,3]
[311526024,1705185753006,301.43659782,0.0002,2]
[311526025,1705185760222,378.27,0.00019995,3]
[311526026,1705185762170,155.01395126,0.00018003,3]
[311526027,1705185765097,155.01395126,0.00019983,2]
[311526028,1705185765761,717.8094373,0.00015002,2]
[311526029,1705185771381,315.22,0.00019995,3]
[311526030,1705185773860,1990.42773149,0.0002,2]
[311526031,1705185776197,155.01395126,0.00018003,3]
[311526032,1705185781566,679.06966143,0.0002,2]
[311526033,1705185782463,262.69,0.00019995,3]
[311526034,1705185786866,329.01472352,0.0002,2]
[311526035,1705185787094,155.01395126,0.00019983,2]
[311526036,1705185793452,218.9,0.00019995,3]
[311526037,1705185795774,322.58071309,0.0002,2]
[311526038,1705185796172,155.01395126,0.00018003,3]
[311526039,1705185796917,261.8986851,0.0002,2]
[311526040,1705185798918,155.01395126,0.0002,2]
[311526041,1705185799525,15197.28117202,0.0002,2]
[311526042,1705185800031,166.39764695,0.0002,2]
[311526043,1705185800524,213.06897268,0.0002,2]
[311526044,1705185801582,7947.14971871,0.0002,2]
[311526045,1705185802578,156.70193537,0.0002,2]
[311526046,1705185804202,521.31313166,0.0002,2]
[311526047,1705185804262,242.70971485,0.0002,2]
[311526048,1705185804370,182.42,0.00019995,3]
[311526049,1705185804602,875.01165605,0.0002,2]
[311526050,1705185805765,155.01395126,0.0002,2]
[311526051,1705185806738,19669.45887816,0.0002,2]
[311526052,1705185807089,155.01395126,0.00019983,2]
[311526053,1705185810145,155.01395126,0.0002,2]
[311526054,1705185811501,200.0,0.00022,7]
[311526055,1705185812241,155.01395126,0.00018003,3]
[311526056,1705185812541,155.01395126,0.0002,2]
[311526057,1705185812583,2709.7496128,0.0002,2]
[311526058,1705185814436,160.756103,0.0002,2]
[311526059,1705185815126,155.01395126,0.0002,2]
[311526060,1705185815342,20842.42787433,0.0002,2]
[311526061,1705185815437,152.02,0.00019996,3]
[311526062,1705185815502,615.80248759,0.0002,2]
[311526063,1705185815708,521.31313166,0.0002,2]
[311526065,1705185816439,554.4461358,0.0002,2]
[311526066,1705185820914,155.01395126,0.00019999,2]
[311526067,1705185821312,155.01395126,0.00019999,2]
[311526068,1705185821992,861.1849247,0.00019999,2]
[311526069,1705185824674,594.2143433,0.0002,2]
[311526070,1705185824946,155.01395126,0.0002,2]
[311526071,1705185825095,184.00608746,0.00019984,2]
[311526072,1705185825732,31466.17887147,0.0002,2]
[311526073,1705185832191,155.01395126,0.00018004,3]
[311526074,1705185856182,155.01395126,0.00017998,3]
[311526075,1705185862827,1172.0247994,0.00019002,2]
[311526077,1705185874194,155.01395126,0.00017998,3]
[311526078,1705185892184,155.01395126,0.00017996,3]
[311526080,1705185908186,155.01395126,0.00017995,3]
[311526081,1705185926183,155.01395126,0.00017995,3]
[311526082,1705185946189,155.01395126,0.00017982,3]
[311526083,1705185962189,155.01395126,0.00017982,3]
[311526084,1705185982197,155.01395126,0.00017981,3]
[311526085,1705186004248,155.01395126,0.00017981,3]
[311526086,1705186018044,175.90196731,0.00019883,2]
[311526087,1705186022203,155.01395126,0.00017981,3]
[311526088,1705186029015,487.128022,0.00018967,2]
[311526089,1705186040323,155.01395126,0.00017968,3]
[311526091,1705186056203,155.01395126,0.00017968,3]
[311526092,1705186074198,155.01395126,0.00017968,3]
[311526093,1705186096260,155.01395126,0.00017956,3]
[311526094,1705186111386,200.0,0.00021945,7]
[311526095,1705186112320,155.01395126,0.00017956,3]
[311526096,1705186130232,155.01395126,0.00017956,3]
[311526098,1705186146217,155.01395126,0.00017943,3]
[311526099,1705186162398,155.01395126,0.00017943,3]
[311526100,1705186171126,-832.65986216,0.00019924,2]
[311526101,1705186182216,155.01395126,0.00017943,3]
[311526102,1705186193390,64.66618609,0.00017943,2]
[311526103,1705186193417,911.77989017,0.00017943,2]
[311526105,1705186200214,155.01395126,0.00017934,3]
[311526106,1705186218222,155.01395126,0.00017927,3]
[311526140,1705186232606,-679.06966143,0.00019911,2]
[311526142,1705186232616,-156.70193537,0.00019911,2]
[311526144,1705186232625,-261.8986851,0.00019911,2]
[311526146,1705186232635,-341.26,0.00019912,3]
[311526148,1705186232643,-284.38,0.00019912,3]
[311526150,1705186232652,-236.98,0.00019912,3]
[311526152,1705186232661,-260.43027978,0.00019918,2]
[311526154,1705186232670,-155.01395126,0.00019919,2]
[311526156,1705186232679,-2709.7496128,0.0001992,2]
[311526158,1705186232689,-861.1849247,0.0001992,2]
[311526160,1705186232698,-160.756103,0.0001992,2]
[311526162,1705186232707,-594.2143433,0.0001992,2]
[311526164,1705186232716,-329.01472352,0.0001992,2]
[311526166,1705186232725,-301.43659782,0.0001992,2]
[311526168,1705186232734,-875.01165605,0.00019921,2]
[311526170,1705186232743,-615.80248759,0.00019921,2]
[311526172,1705186232752,-155.01395126,0.00019921,2]
[311526174,1705186232761,-19669.45887816,0.00019921,2]
[311526176,1705186232770,-36905.76332305,0.00019921,2]
[311526178,1705186232779,-213.06897268,0.00019922,2]
[311526180,1705186232788,-155.01395126,0.00019922,2]
[311526182,1705186232797,-81086.75247006,0.00019922,2]
[311526184,1705186232807,-1576.73391587,0.00019923,2]
[311526186,1705186232816,-2907.17706032,0.00019924,2]
[311526188,1705186232826,-23824.33076765,0.00019926,2]
[311526190,1705186232834,-3793.85577903,0.00019979,2]
[311526192,1705186232843,-964.55150019,0.00019983,2]
[311526193,1705186232852,-199.3167884,0.00019998,2]
[311526194,1705186232861,-264.5183907,0.00019999,2]
[311526195,1705186232870,-559.47198771,0.00020003,2]
[311526196,1705186232879,-677.39464403,0.00020003,2]
[311526197,1705186232887,-191.01244923,0.00020003,2]
[311526198,1705186232896,-642.93704766,0.00020003,2]
[311526199,1705186232905,-2697.3139255,0.00020004,2]
[311526200,1705186232914,-238.2658443,0.00020004,2]
[311526201,1705186232924,-282.91565369,0.00020004,2]
[311526202,1705186232933,-2569.84816666,0.00020004,2]
[311526203,1705186232946,-3571.62051196,0.00020004,2]
[311526204,1705186232955,-156.00691354,0.00020004,2]
[311526205,1705186232964,-155.1610491,0.00020004,2]
[311526206,1705186232973,-259.51095678,0.00020004,2]
[311526207,1705186232982,-9308.28936862,0.00020004,2]
[311526299,1705186238244,155.01395126,0.00017927,3]
[311526335,1705186238812,-166.39764695,0.0001991,2]
[311526336,1705186238822,-155.01395126,0.0001991,2]
[311526337,1705186238832,-2005.24931346,0.00019919,2]
[311526338,1705186238920,-437.90229,0.00019919,2]
[311526339,1705186238933,-432.85647337,0.00019919,2]
[311526340,1705186238946,-12321.27309519,0.00019919,2]
[311526341,1705186238955,-1403.27529801,0.00020004,2]
[311526342,1705186238966,-1737.04628113,0.00020005,2]
[311526343,1705186238977,-294.52216814,0.00020005,2]
[311526344,1705186238987,-309.63088032,0.00020005,2]
[311526345,1705186238998,-305.87855305,0.00020005,2]
[311526346,1705186239009,-237.42557421,0.00020005,2]
[311526347,1705186239020,-7317.21199642,0.00020005,2]
[311526348,1705186239031,-1239.37629039,0.00020005,2]
[311526349,1705186239042,-2035.15445086,0.00020005,2]
[311526350,1705186239052,-253.00718711,0.00020005,2]
[311526351,1705186239062,-339.41458915,0.00020005,2]
[311526352,1705186239072,-360.80127126,0.00020006,2]
[311526353,1705186239082,-686.45769286,0.00020006,2]
[311526354,1705186239093,-298.37884806,0.00020007,2]
[311526355,1705186239103,-17653.92991781,0.00020007,2]
[311526356,1705186239112,-192.590697,0.00020084,2]
[311526357,1705186239123,-155.08217854,0.00020098,2]
[311526358,1705186239134,-155.1257921,0.00020098,2]
[311526359,1705186239145,-309.75698911,0.00020098,2]
[311526360,1705186239155,-1146.57178057,0.00020098,2]
[311526361,1705186239165,-587.34193161,0.00020098,2]
[311526362,1705186239175,-282.92595231,0.00020107,2]
[311526363,1705186239185,-207.10342479,0.00020208,2]
[311526364,1705186239194,-223.13923506,0.00020208,2]
[311526365,1705186239204,-309.89153874,0.00020208,2]
[311526366,1705186239213,-198.11275492,0.00020208,2]
[311526367,1705186239222,-249.4328017,0.00020208,2]
[311526368,1705186239231,-304.4646857,0.00020208,2]
[311526369,1705186239241,-162.61777634,0.00020208,2]
[311526370,1705186239250,-2030.38673937,0.00020208,2]
[311526371,1705186239259,-155.04651395,0.00020208,2]
[311526372,1705186239269,-309.86062544,0.00020209,2]
[311526373,1705186239280,-4006.72920618,0.00020209,2]
[311526374,1705186239291,-15883.65187876,0.00020209,2]
[311526375,1705186239303,-16000.04523432,0.00020211,2]
[311526376,1705186239314,-309.87604958,0.00020211,2]
[311526377,1705186239326,-309.75221062,0.00020211,2]
[311526378,1705186239338,-309.16953134,0.00020211,2]
[311526379,1705186239349,-637.26620041,0.00020211,2]
[311526380,1705186239360,-250.79101086,0.00020211,2]
[311526381,1705186239374,-2517.27565721,0.00020211,2]
[311526382,1705186239386,-2808.94906759,0.00020211,2]
[311526383,1705186239398,-309.78316417,0.00020211,2]
[311526384,1705186239409,-155.34159394,0.00020211,2]
[311526385,1705186239419,-250.47516659,0.00020211,2]
[311526386,1705186239430,-310.00798648,0.00020211,2]
[311526387,1705186239440,-155.09446132,0.00020211,2]